bitfinex-derivatives/quotes_BTCF0:USTF0_20250212
["timestamp","ask_amount","ask_price","bid_price","bid_amount"]
[1739334462844,0.0573,95458.0,95455.0,0.2095754]
[1739334463553,0.0573,95458.0,95456.0,0.2095725]
[1739334463756,0.0573,95458.0,95450.0,0.001]
[1739334464049,0.0573,95458.0,95452.0,0.001]
[1739334464451,0.0553,95458.0,95452.0,0.001]
[1739334464653,0.0613,95458.0,95455.0,0.001]
[1739334465056,0.0553,95458.0,95452.0,0.001]
[1739334465256,0.0603,95458.0,95452.0,0.002]
[1739334466358,0.0603,95458.0,95453.0,0.07128]
[1739334466561,0.2095777,95454.0,95453.0,0.07128]
[1739334467759,0.0613,95458.0,95453.0,0.07128]
[1739334468259,0.0483,95458.0,95453.0,0.07128]
[1739334468460,0.019,95454.0,95453.0,0.07328]
[1739334469553,0.019,95454.0,95453.0,0.07324]
[1739334470355,0.3608,95455.0,95453.0,0.07224]
[1739334470550,0.3608,95455.0,95453.0,0.07324]
[1739334470860,0.3608,95455.0,95453.0,0.07224]
[1739334471055,0.006,95454.0,95453.0,0.07324]
[1739334471458,0.3608,95455.0,95453.0,0.07224]
[1739334471661,0.3668,95455.0,95453.0,0.07324]
[1739334471863,0.013,95454.0,95453.0,0.07324]
[1739334472763,0.013,95454.0,95451.0,0.07124]
[1739334473259,0.019,95454.0,95453.0,0.001]
[1739334473566,0.006,95454.0,95453.0,0.002]
[1739334474165,0.017,95454.0,95453.0,0.001]
[1739334474368,0.016,95454.0,95451.0,0.2818234]
[1739334474951,0.005,95454.0,95453.0,0.001]
[1739334475259,0.018,95454.0,95453.0,0.001]
[1739334476352,0.013,95454.0,95453.0,0.001]
[1739334476559,0.018,95454.0,95451.0,0.2818234]
[1739334477058,0.012,95454.0,95453.0,0.004]
[1739334477459,0.001,95454.0,95453.0,0.008]
[1739334477658,0.001,95454.0,95453.0,0.01]
[1739334480263,0.001,95454.0,95453.0,0.008]
[1739334480459,0.001,95454.0,95453.0,0.009]
[1739334482570,0.3608,95455.0,95453.0,0.002]
[1739334482765,0.001,95454.0,95453.0,0.007]
[1739334482965,0.001,95454.0,95453.0,0.009]
[1739334483469,0.3608,95455.0,95453.0,0.002]
[1739334483671,0.001,95454.0,95453.0,0.007]
[1739334484073,0.001,95454.0,95453.0,0.006]
[1739334484268,0.5703775,95455.0,95453.0,0.001]
[1739334484475,0.001,95454.0,95453.0,0.006]
[1739334484959,0.2095953,95446.0,95445.0,0.01661285]
[1739334485163,0.5703953,95446.0,95445.0,0.01661285]
[1739334485574,0.5703953,95446.0,95445.0,0.00015718]
[1739334486367,0.2096128,95438.0,95431.0,0.77588]
[1739334486572,0.5704128,95438.0,95431.0,0.77588]
[1739334487071,0.5704128,95438.0,95437.0,0.2671198]
[1739334487571,0.5714128,95438.0,95437.0,0.2751198]
[1739334487779,0.5714128,95438.0,95437.0,0.02479019]
[1739334489271,0.5714128,95438.0,95437.0,0.008]
[1739334494975,0.3618,95438.0,95431.0,0.77588]
[1739334495280,0.209626,95432.0,95431.0,0.77516]
[1739334495579,0.2096326,95429.0,95428.0,0.00015718]
[1739334497070,0.2106326,95429.0,95428.0,0.0196088]
[1739334497271,0.2106326,95429.0,95428.0,0.0236088]
[1739334503581,0.2106326,95429.0,95415.0,0.00157203]
[1739334503582,0.2096611,95416.0,95415.0,0.01826452]
[1739334503782,0.5704611,95416.0,95415.0,0.00157203]
[1739334505074,0.5724611,95416.0,95415.0,0.00157203]
[1739334506083,0.5734611,95416.0,95415.0,0.00157203]
[1739334506383,0.5734611,95416.0,95413.0,0.14340605]
[1739334508980,0.5724611,95416.0,95413.0,0.14340605]
[1739334509183,0.2096656,95414.0,95413.0,0.14340605]
[1739334511685,0.2106656,95414.0,95413.0,0.14340605]
[1739334512082,0.5714656,95414.0,95413.0,0.14340605]
[1739334515885,0.2096918,95402.0,95401.0,0.00068]
[1739334516192,0.5704918,95402.0,95400.0,0.1]
[1739334517987,0.2211,95401.0,95400.0,1e-07]
[1739334518175,0.2645,95401.0,95400.0,1e-07]
[1739334518488,0.2097204,95389.0,95388.0,1e-08]
[1739334518675,0.6417604,95389.0,95388.0,1e-08]
[1739334519887,0.6427604,95389.0,95388.0,1e-08]
[1739334521280,0.43304,95389.0,95373.0,0.02260604]
[1739334521589,0.5705534,95374.0,95373.0,0.02260604]
[1739334523189,0.5715534,95374.0,95373.0,0.02260604]
[1739334523389,0.5715534,95374.0,95373.0,0.00157224]
[1739334524278,0.2107534,95374.0,95373.0,0.00157224]
[1739334524788,0.2127534,95374.0,95373.0,0.00157224]
[1739334524986,0.2117534,95374.0,95373.0,0.00157224]
[1739334525387,0.2097534,95374.0,95373.0,0.00157224]
[1739334525589,0.2107534,95374.0,95373.0,0.00157224]
[1739334525894,0.2117534,95374.0,95373.0,0.00157224]
[1739334526092,0.2107534,95374.0,95373.0,0.00157224]
[1739334526389,0.2107534,95374.0,95370.0,0.02124248]
[1739334526687,0.001,95374.0,95369.0,0.07124]
[1739334526992,0.2097605,95371.0,95369.0,0.07124]
[1739334528597,0.2107605,95371.0,95369.0,0.07124]
[1739334529596,0.2097605,95371.0,95369.0,0.07124]
[1739334529793,0.2107605,95371.0,95369.0,0.07124]
[1739334531599,0.001,95371.0,95370.0,0.3608]
[1739334531794,0.5705388,95381.0,95370.0,0.3608]
[1739334532095,0.5705388,95381.0,95371.0,0.12676877]
[1739334532392,0.2097388,95381.0,95371.0,0.12676877]
[1739334532594,0.2097252,95387.0,95372.0,0.2097564]
[1739334532796,0.2097252,95387.0,95380.0,0.12676877]
[1739334532996,0.2097252,95387.0,95381.0,0.0866]
[1739334533996,0.2097252,95387.0,95382.0,0.07124]
[1739334535595,0.2107252,95387.0,95382.0,0.07124]
[1739334535985,0.2097339,95383.0,95370.0,0.3608]
[1739334536185,0.2097551,95374.0,95370.0,0.48756877]
[1739334536391,0.2097551,95374.0,95370.0,0.3608]
[1739334536590,0.2097551,95374.0,95370.0,0.3818637]
[1739334536796,0.2097429,95379.0,95370.0,0.3818637]
[1739334537098,0.2097429,95379.0,95370.0,0.50863247]
[1739334537494,0.001,95387.0,95374.0,0.2097519]
[1739334537698,0.2097351,95383.0,95377.0,0.12676877]
[1739334537997,0.2107351,95383.0,95378.0,0.0877]
[1739334538599,0.2097351,95383.0,95378.0,0.0877]
[1739334538800,0.001,95387.0,95379.0,0.2097417]
[1739334539601,0.001,95383.0,95379.0,0.2097417]
[1739334539792,0.001,95383.0,95379.0,0.3608]
[1739334539987,0.001,95383.0,95370.0,0.50863247]
[1739334540698,0.2097351,95383.0,95370.0,0.50863247]
[1739334540999,0.2097408,95380.0,95373.0,0.12676877]
[1739334541200,0.2097447,95378.0,95373.0,0.12676877]
[1739334541591,0.2097488,95377.0,95373.0,0.12676877]
[1739334541791,0.2097488,95377.0,95370.0,0.3818637]
[1739334542598,0.2097517,95375.0,95370.0,0.4531037]
[1739334542897,0.2097542,95374.0,95370.0,0.0923037]
[1739334543487,0.2097803,95362.0,95360.0,0.34366877]
[1739334543692,0.2097657,95369.0,95365.0,0.07124]
[1739334544692,0.00015726,95371.0,95368.0,0.3608]
[1739334544991,0.00015726,95371.0,95369.0,0.3006638]
[1739334545202,0.001,95374.0,95373.0,0.2097556]
[1739334545804,0.2097232,95388.0,95377.0,0.2097466]
[1739334546102,0.0883,95396.0,95381.0,0.3608]
[1739334546304,0.3608,95390.0,95381.0,0.3608]
[1739334546596,0.2097318,95384.0,95381.0,0.3608]
[1739334548205,0.2107318,95384.0,95381.0,0.3608]
[1739334548898,0.2117318,95384.0,95381.0,0.3608]
[1739334549301,0.2107318,95384.0,95381.0,0.3608]
[1739334549506,0.2097318,95384.0,95381.0,0.3608]
[1739334552097,0.00015726,95392.0,95381.0,0.3608]
[1739334552307,0.2097174,95391.0,95382.0,0.12672146]
[1739334552491,0.00015726,95392.0,95389.0,0.3608]
[1739334552691,0.00015726,95392.0,95389.0,0.2348]
[1739334554102,0.001,95391.0,95389.0,0.2348]
[1739334554709,0.00315726,95392.0,95390.0,0.07124]
[1739334555098,0.00915726,95392.0,95390.0,0.07124]
[1739334555304,0.003,95391.0,95390.0,0.07124]
[1739334557007,0.00915726,95392.0,95390.0,0.07124]
[1739334557406,0.009,95391.0,95390.0,0.07124]
[1739334557607,0.009,95391.0,95389.0,0.18004]
[1739334558002,0.006,95391.0,95389.0,0.18004]
[1739334558311,0.00915726,95392.0,95388.0,0.2809617]
[1739334558811,0.003,95391.0,95388.0,0.2809617]
[1739334559004,0.009,95391.0,95388.0,0.2809617]
[1739334559599,0.009,95391.0,95389.0,0.2097186]
[1739334560512,0.003,95391.0,95389.0,0.2097186]
[1739334561310,0.009,95391.0,95389.0,0.2097186]
[1739334562708,0.009,95391.0,95388.0,0.07124]
[1739334563014,0.009,95391.0,95389.0,0.2097186]
[1739334563913,0.007,95391.0,95389.0,0.2097204]
[1739334564509,0.008,95391.0,95389.0,0.2097204]
[1739334564709,0.009,95391.0,95389.0,0.2097204]
[1739334567616,0.009,95391.0,95388.0,0.07124]
[1739334568211,0.009,95391.0,95389.0,0.2097204]
[1739334569611,0.005,95391.0,95389.0,0.2097204]
[1739334569803,0.007,95391.0,95389.0,0.2097204]
[1739334570216,0.008,95391.0,95389.0,0.2097204]
[1739334570809,0.003,95391.0,95389.0,0.2097204]
[1739334571016,0.009,95391.0,95389.0,0.2097204]
[1739334571211,0.009,95391.0,95388.0,0.07124]
[1739334571411,0.009,95391.0,95390.0,0.2097182]
[1739334572821,0.008,95391.0,95390.0,0.2097182]
[1739334573023,0.007,95391.0,95390.0,0.2097182]
[1739334573318,0.008,95391.0,95390.0,0.2097182]
[1739334573920,0.009,95391.0,95390.0,0.2097182]
[1739334574221,0.009,95391.0,95390.0,0.2809182]
[1739334574617,0.009,95391.0,95390.0,0.29986067]
[1739334578617,0.005,95391.0,95390.0,0.29986067]
[1739334579125,0.003,95391.0,95390.0,0.29986067]
[1739334579317,0.002,95391.0,95390.0,0.29986067]
[1739334579718,0.209666,95414.0,95399.0,0.2096976]
[1739334579919,0.18706601,95415.0,95404.0,0.0831378]
[1739334580514,0.18706601,95415.0,95404.0,0.2928248]
[1739334580717,0.18706601,95415.0,95409.0,0.3608]
[1739334582527,0.23386601,95416.0,95409.0,0.3608]
[1739334582728,0.001,95415.0,95409.0,0.3608]
[1739334583222,0.001,95415.0,95412.0,0.2096682]
[1739334583526,0.001,95415.0,95409.0,0.3608]
[1739334583527,0.3608,95445.0,95411.0,0.0712]
[1739334583728,0.14542096,95433.0,95431.0,0.2096265]
[1739334584419,0.14542096,95433.0,95430.0,0.3608]
[1739334584621,0.2096271,95432.0,95425.0,0.0712]
[1739334585418,0.14542096,95433.0,95425.0,0.2808395]
[1739334585721,0.14542096,95433.0,95425.0,0.0712]
[1739334585922,0.14542096,95433.0,95426.0,0.2096385]
[1739334586423,0.011,95433.0,95426.0,0.2096385]
[1739334586624,0.011,95433.0,95425.0,0.08986092]
[1739334586823,0.014,95433.0,95427.0,0.2096358]
[1739334587019,0.014,95433.0,95425.0,0.08986092]
[1739334587222,0.011,95433.0,95431.0,0.2096271]
[1739334587430,0.012,95433.0,95431.0,0.2096271]
[1739334587629,0.012,95433.0,95431.0,0.0836271]
[1739334587822,0.008,95433.0,95425.0,0.08986092]
[1739334588021,0.013,95433.0,95432.0,0.2096259]
[1739334589625,0.016,95433.0,95432.0,0.2096259]
[1739334589930,0.017,95433.0,95432.0,0.2096259]
[1739334590436,0.018,95433.0,95432.0,0.2096259]
[1739334590729,0.013,95433.0,95432.0,0.2096259]
[1739334590925,0.29772811,95445.0,95430.0,0.3608]
[1739334591123,0.2971281,95445.0,95435.0,0.3758936]
[1739334592028,0.2971281,95445.0,95436.0,0.209617]
[1739334592627,0.3031281,95445.0,95436.0,0.209617]
[1739334592930,0.3121281,95445.0,95435.0,0.1662756]
[1739334593522,0.3031281,95445.0,95435.0,0.1662756]
[1739334593725,0.3161281,95445.0,95437.0,0.2096146]
[1739334594133,0.019,95445.0,95443.0,0.2096001]
[1739334595425,0.013,95445.0,95443.0,0.2096001]
[1739334595626,0.019,95445.0,95443.0,0.2096001]
[1739334596131,0.014,95445.0,95443.0,0.2096001]
[1739334597626,0.002,95445.0,95437.0,0.0442]
[1739334597828,0.002,95445.0,95443.0,0.2096001]
[1739334598737,0.001,95445.0,95443.0,0.2096001]
[1739334599535,0.002,95445.0,95443.0,0.2096001]
[1739334600236,0.001,95445.0,95443.0,0.2096001]
[1739334601135,0.002,95445.0,95443.0,0.2096001]
[1739334602636,0.002,95445.0,95443.0,0.0836001]
[1739334602836,0.002,95445.0,95437.0,0.0442]
[1739334603343,0.002,95445.0,95443.0,0.2096001]
[1739334604036,0.001,95445.0,95444.0,0.3608]
[1739334604843,0.3608,95466.0,95444.0,0.3608]
[1739334605036,0.3608,95466.0,95456.0,0.12656531]
[1739334605236,0.2095386,95472.0,95457.0,0.16286]
[1739334605437,0.3608,95466.0,95464.0,0.12656531]
[1739334605638,0.3608,95466.0,95457.0,0.16286]
[1739334606035,0.20969848,95471.0,95457.0,0.16286]
[1739334607537,0.20969848,95471.0,95457.0,0.16486]
[1739334607746,0.20969848,95471.0,95457.0,0.3744291]
[1739334608641,0.20969848,95471.0,95457.0,0.16486]
[1739334608837,0.20969848,95471.0,95458.0,0.2095678]
[1739334609040,0.20969848,95471.0,95457.0,0.16486]
[1739334609243,0.00015718,95471.0,95461.0,0.2095607]
[1739334609542,0.00015718,95471.0,95457.0,0.16486]
[1739334609738,0.00015718,95471.0,95460.0,0.12656531]
[1739334610144,0.00015718,95471.0,95464.0,0.2095551]
[1739334611042,0.00015718,95471.0,95460.0,0.12656531]
[1739334611238,0.00015718,95471.0,95467.0,0.2095485]
[1739334611541,0.00415718,95471.0,95469.0,0.2095441]
[1739334612043,0.00415718,95471.0,95470.0,0.048]
[1739334612238,0.00215718,95471.0,95470.0,0.048]
[1739334612738,0.00115718,95471.0,95469.0,0.2026641]
[1739334612940,0.00515718,95471.0,95469.0,0.2026641]
[1739334613245,0.00115718,95471.0,95469.0,0.2026641]
[1739334613440,0.00515718,95471.0,95469.0,0.2026641]
[1739334613746,0.01115718,95471.0,95469.0,0.2036641]
[1739334613935,0.00715718,95471.0,95469.0,0.2036641]
[1739334614137,0.01115718,95471.0,95469.0,0.2036641]
[1739334615046,1e-08,95471.0,95469.0,0.2036641]
[1739334615940,1e-08,95471.0,95470.0,0.0499]
[1739334616141,0.00010386,95480.0,95470.0,0.07112]
[1739334616445,0.00010386,95480.0,95470.0,0.19768531]
[1739334617041,0.007,95471.0,95470.0,0.19868531]
[1739334617338,0.007,95471.0,95470.0,0.07212]
[1739334617537,0.007,95471.0,95470.0,0.001]
[1739334617750,0.004,95471.0,95465.0,0.00015718]
[1739334617941,0.004,95471.0,95470.0,0.001]
[1739334619138,0.2095389,95472.0,95470.0,0.001]
[1739334619340,0.002,95471.0,95470.0,0.001]
[1739334619540,0.002,95471.0,95465.0,0.00015718]
[1739334619739,0.5703513,95466.0,95465.0,0.00015718]
[1739334620141,0.6414713,95466.0,95465.0,0.01875121]
[1739334620344,0.6414713,95466.0,95465.0,0.00015718]
[1739334620550,0.209559,95463.0,95453.0,0.77504]
[1739334620748,0.3608,95456.0,95453.0,0.79373043]
[1739334622549,0.3608,95456.0,95453.0,0.79473043]
[1739334622750,0.3608,95456.0,95453.0,0.66873043]
[1739334623843,0.2806975,95455.0,95453.0,0.02569043]
[1739334624146,0.16592,95455.0,95445.0,0.00015718]
[1739334624347,0.2095952,95446.0,95445.0,0.00015718]
[1739334624552,0.3608,95448.0,95421.0,0.097]
[1739334624852,0.3608,95433.0,95426.0,0.20649833]
[1739334625150,0.0487,95432.0,95426.0,0.20649833]
[1739334625641,0.209637,95427.0,95426.0,0.20649833]
[1739334626746,0.209637,95427.0,95426.0,0.18782869]
[1739334626946,0.282757,95427.0,95426.0,0.18782869]
[1739334627251,0.282757,95427.0,95426.0,0.18882869]
[1739334627453,0.280757,95427.0,95426.0,0.18882869]
[1739334627650,0.280757,95427.0,95426.0,0.06282869]
[1739334627844,0.286757,95427.0,95426.0,0.001]
[1739334629050,0.289757,95427.0,95426.0,0.001]
[1739334629750,0.2096458,95423.0,95422.0,0.0191978]
[1739334629946,0.2096523,95420.0,95419.0,0.00015718]
[1739334630252,0.5704523,95420.0,95419.0,0.00015718]
[1739334632362,0.5704523,95420.0,95388.0,0.0461]
[1739334632363,0.2096765,95409.0,95395.0,0.77512]
[1739334632652,0.3608,95403.0,95396.0,0.0489]
[1739334632860,0.2096891,95404.0,95396.0,0.0489]
[1739334632861,0.2096891,95404.0,95396.0,0.06595293]
[1739334633244,0.2097028,95397.0,95396.0,0.06595293]
[1739334634551,0.2107028,95397.0,95396.0,0.08095293]
[1739334635247,0.2107028,95397.0,95396.0,0.08695293]
[1739334635857,0.2107028,95397.0,95396.0,0.08095293]
[1739334636053,0.002,95397.0,95396.0,0.08695293]
[1739334638957,0.001,95397.0,95396.0,0.08095293]
[1739334639256,0.002,95397.0,95396.0,0.08695293]
[1739334639657,0.001,95397.0,95396.0,0.08395293]
[1739334639959,0.001,95397.0,95396.0,0.07695293]
[1739334640551,0.2097021,95398.0,95396.0,0.06895293]
[1739334640764,0.001,95397.0,95396.0,0.07595293]
[1739334641149,0.001,95397.0,95396.0,0.07295293]
[1739334641350,0.001,95397.0,95396.0,0.12155293]
[1739334641960,0.001,95397.0,95396.0,0.11955293]
[1739334642157,0.2096892,95404.0,95396.0,0.11255293]
[1739334642463,0.2096892,95404.0,95396.0,0.11755293]
[1739334642962,0.001,95397.0,95396.0,0.12555293]
[1739334644364,0.2097024,95398.0,95396.0,0.12455293]
[1739334644662,0.2097024,95398.0,95396.0,0.07995293]
[1739334645062,0.2097024,95398.0,95396.0,0.07795293]
[1739334645661,0.2097024,95398.0,95396.0,0.07495293]
[1739334645867,0.001,95397.0,95396.0,0.07595293]
[1739334646563,0.2097024,95398.0,95396.0,0.06695293]
[1739334646757,0.2097024,95398.0,95396.0,0.07195293]
[1739334647468,0.2097024,95398.0,95396.0,0.07095293]
[1739334648163,0.57064208,95406.0,95396.0,0.07095293]
[1739334648361,0.36095718,95406.0,95401.0,0.2096929]
[1739334649156,0.36095718,95406.0,95397.0,0.0498]
[1739334649366,0.36095718,95406.0,95403.0,0.2096889]
[1739334649566,0.36095718,95406.0,95397.0,0.0498]
[1739334650159,0.00015718,95406.0,95397.0,0.0498]
[1739334651364,0.00015718,95406.0,95401.0,0.004]
[1739334651768,0.00115718,95406.0,95401.0,0.004]
[1739334652267,0.00115718,95406.0,95397.0,0.0658]
[1739334652669,0.00115718,95406.0,95401.0,0.01]
[1739334652866,0.00115718,95406.0,95401.0,0.012]
[1739334653171,0.209686,95405.0,95401.0,0.012]
[1739334653571,0.2096884,95404.0,95401.0,0.012]
[1739334653770,0.2096884,95404.0,95401.0,0.002]
[1739334654458,0.2096904,95403.0,95401.0,0.002]
[1739334655174,0.2096904,95403.0,95397.0,0.13696]
[1739334655472,0.2096904,95403.0,95397.0,0.12496]
[1739334655677,0.2096904,95403.0,95401.0,0.011]
[1739334656165,0.2096904,95403.0,95401.0,0.002]
[1739334656363,0.2106904,95403.0,95401.0,0.002]
[1739334656567,0.2096949,95401.0,95397.0,0.01]
[1739334656773,0.2096967,95400.0,95397.0,0.013]
[1739334656971,0.2096994,95399.0,95397.0,0.013]
[1739334657169,0.5704994,95399.0,95397.0,0.013]
[1739334657559,0.5704994,95399.0,95397.0,0.003]
[1739334658376,0.2097028,95397.0,95396.0,0.01705293]
[1739334658678,0.2097028,95397.0,95395.0,0.7758]
[1739334658870,0.2097028,95397.0,95395.0,0.77512]
[1739334659675,0.2097028,95397.0,95395.0,0.79254457]
[1739334659977,0.2107028,95397.0,95395.0,0.79254457]
[1739334660568,0.2107028,95397.0,95395.0,0.01842457]
[1739334665074,0.001,95397.0,95395.0,0.01842457]
[1739334665277,0.00056001,95399.0,95395.0,0.01842457]
[1739334665465,0.2096864,95405.0,95398.0,0.2097006]
[1739334665666,0.22125718,95406.0,95399.0,0.0973]
[1739334666678,0.22125718,95406.0,95403.0,0.2096891]
[1739334666876,0.22325718,95406.0,95403.0,0.2096891]
[1739334667667,0.22325718,95406.0,95400.0,0.0493]
[1739334668279,0.22525718,95406.0,95400.0,0.0493]
[1739334668469,0.22525718,95406.0,95404.0,0.2096862]
[1739334668776,0.00415718,95406.0,95404.0,0.2096862]
[1739334668962,0.00215718,95406.0,95404.0,0.2096862]
[1739334669167,0.00315718,95406.0,95404.0,0.2096862]
[1739334669372,0.00315718,95406.0,95400.0,0.0623]
[1739334669573,0.00315718,95406.0,95400.0,0.013]
[1739334669783,0.00215718,95406.0,95399.0,0.0973]
[1739334670079,0.00115718,95406.0,95404.0,0.015]
[1739334671179,0.00115718,95406.0,95404.0,0.018]
[1739334672078,0.00015718,95406.0,95404.0,0.003]
[1739334672277,0.00115718,95406.0,95404.0,0.003]
[1739334672873,0.21084198,95406.0,95404.0,0.003]
[1739334673481,0.21084198,95406.0,95404.0,0.01]
[1739334673674,0.21084198,95406.0,95404.0,0.009]
[1739334673979,0.00115718,95406.0,95404.0,0.009]
[1739334674181,0.00115718,95406.0,95405.0,0.2096853]
[1739334674681,0.00115718,95406.0,95404.0,0.009]
[1739334676387,0.00015718,95406.0,95405.0,0.001]
[1739334676574,0.00115718,95406.0,95405.0,0.001]
[1739334676885,0.18715511,95413.0,95404.0,0.009]
[1739334677087,0.15711723,95413.0,95412.0,0.2096699]
[1739334678988,0.15811723,95413.0,95412.0,0.2096699]
[1739334679880,0.00015718,95422.0,95412.0,0.2116699]
[1739334680082,0.00015718,95422.0,95418.0,0.3608]
[1739334681080,0.2096545,95419.0,95418.0,0.3608]
[1739334681677,0.0468,95421.0,95412.0,0.01761561]
[1739334681884,0.0468,95421.0,95412.0,0.003]
[1739334682086,0.209667,95414.0,95412.0,0.003]
[1739334682483,0.209667,95414.0,95410.0,0.01723184]
[1739334683485,0.209667,95414.0,95412.0,0.003]
[1739334685990,0.209667,95414.0,95410.0,0.01723184]
[1739334686295,0.209667,95414.0,95410.0,0.02223184]
[1739334686994,0.209667,95414.0,95412.0,0.003]
[1739334687494,0.209667,95414.0,95410.0,0.01723184]
[1739334687690,0.209667,95414.0,95410.0,0.02323184]
[1739334688387,0.2564502,95421.0,95410.0,0.02323184]
[1739334688587,0.2564502,95421.0,95410.0,0.14979715]
[1739334689696,0.2564502,95421.0,95412.0,0.003]
[1739334690091,0.0468,95421.0,95412.0,0.003]
[1739334690398,0.00015718,95422.0,95416.0,0.3608]
[1739334690695,0.00015718,95422.0,95417.0,0.0993]
[1739334691196,0.00015718,95422.0,95419.0,0.2096532]
[1739334691788,0.00115718,95422.0,95419.0,0.2096532]
[1739334692193,0.00115718,95422.0,95417.0,0.0993]
[1739334692696,0.00115718,95422.0,95414.0,0.07156]
[1739334693099,0.00115718,95422.0,95416.0,0.2096608]
[1739334693398,0.00215718,95422.0,95416.0,0.2096608]
[1739334693900,0.00315718,95422.0,95416.0,0.2096608]
[1739334694197,0.00215718,95422.0,95416.0,0.2096608]
[1739334694401,0.00015718,95422.0,95416.0,0.2096608]
[1739334694596,0.00115718,95422.0,95416.0,0.2096608]
[1739334695996,0.00115718,95422.0,95417.0,0.2096578]
[1739334696298,0.00115718,95422.0,95419.0,0.2096542]
[1739334696695,0.046,95432.0,95414.0,0.07148]
[1739334696696,0.31360284,95436.0,95421.0,0.3608]
[1739334696896,0.30760284,95436.0,95432.0,0.2096247]
[1739334697396,0.2556006,95444.0,95432.0,0.2096247]
[1739334697601,0.2556006,95444.0,95434.0,0.12656531]
[1739334697797,0.046,95444.0,95434.0,0.12656531]
[1739334698003,0.046,95444.0,95440.0,0.2096074]
[1739334698397,0.046,95444.0,95434.0,0.12656531]
[1739334698602,0.047,95444.0,95434.0,0.12656531]
[1739334698904,0.047,95444.0,95433.0,0.2096228]
[1739334699205,0.046,95444.0,95440.0,0.002]
[1739334699506,0.2096048,95442.0,95440.0,0.002]
[1739334699807,0.0473,95441.0,95440.0,0.002]
[1739334700407,0.0473,95441.0,95440.0,0.009]
[1739334700706,0.0473,95441.0,95440.0,0.007]
[1739334701205,0.0483,95441.0,95440.0,0.007]
[1739334701805,0.0483,95441.0,95430.0,0.12656531]
[1739334702099,0.2096282,95431.0,95430.0,0.12656531]
[1739334702295,0.2096282,95431.0,95429.0,0.37665932]
[1739334703406,0.2106282,95431.0,95429.0,0.38465932]
[1739334703998,0.2106282,95431.0,95430.0,0.002]
[1739334704398,0.2106282,95431.0,95429.0,0.02385932]
[1739334704606,0.2106282,95431.0,95429.0,0.02585932]
[1739334705099,0.2106282,95431.0,95430.0,0.002]
[1739334705294,0.2096282,95431.0,95430.0,0.009]
[1739334705499,0.2106282,95431.0,95430.0,0.009]
[1739334706007,0.2096282,95431.0,95430.0,0.002]
[1739334706204,0.2106282,95431.0,95430.0,0.014]
[1739334706599,0.2106282,95431.0,95430.0,0.012]
[1739334707001,0.20645151,95431.0,95430.0,0.012]
[1739334707410,0.20645151,95431.0,95430.0,0.014]
[1739334707605,0.18922071,95431.0,95430.0,0.014]
[1739334708109,0.17248465,95431.0,95430.0,0.014]
[1739334708609,0.17248465,95431.0,95430.0,0.009]
[1739334709116,0.17148465,95431.0,95430.0,0.002]
[1739334709410,0.17248465,95431.0,95430.0,0.009]
[1739334709915,0.17248465,95431.0,95430.0,0.002]
[1739334709916,0.17148465,95431.0,95430.0,0.002]
[1739334710114,0.17248465,95431.0,95430.0,0.01]
[1739334711310,0.17248465,95431.0,95430.0,0.008]
[1739334711610,0.17248465,95431.0,95430.0,0.01]
[1739334711919,0.17248465,95431.0,95430.0,0.009]
[1739334713214,0.17148465,95431.0,95430.0,0.002]
[1739334713414,0.17248465,95431.0,95430.0,0.009]
[1739334714103,0.17248465,95431.0,95430.0,0.007]
[1739334714305,0.17248465,95431.0,95430.0,0.009]
[1739334714713,0.17248465,95431.0,95430.0,0.007]
[1739334715014,0.17148465,95431.0,95430.0,0.001]
[1739334715210,0.17248465,95431.0,95430.0,0.008]
[1739334715412,0.17248465,95431.0,95430.0,0.009]
[1739334715812,0.17148465,95431.0,95430.0,0.002]
[1739334716012,0.17248465,95431.0,95430.0,0.006]
[1739334717708,0.17248465,95431.0,95430.0,0.008]
[1739334718207,0.17248465,95431.0,95430.0,0.009]
[1739334718615,0.17148465,95431.0,95430.0,0.002]
[1739334718803,0.17448465,95431.0,95429.0,0.01585932]
[1739334719412,0.17548465,95431.0,95429.0,0.01585932]
[1739334720819,0.17348465,95431.0,95429.0,0.01585932]
[1739334721112,0.17548465,95431.0,95429.0,0.01585932]
[1739334721523,0.17348465,95431.0,95429.0,0.01585932]
[1739334721819,0.17248465,95431.0,95429.0,0.01585932]
[1739334722326,0.17348465,95431.0,95429.0,0.01585932]
[1739334722611,0.17548465,95431.0,95429.0,0.00015718]
[1739334722815,0.004,95431.0,95401.0,0.0484]
[1739334723004,0.2096743,95410.0,95401.0,0.0484]
[1739334723311,0.2096743,95410.0,95402.0,0.0712]
[1739334723512,0.2096743,95410.0,95409.0,0.01722658]
[1739334723711,0.2096743,95410.0,95409.0,0.00157212]
[1739334724322,0.0496,95411.0,95409.0,0.00157212]
[1739334724513,0.2096743,95410.0,95409.0,0.00157212]
[1739334725416,0.001,95410.0,95409.0,0.006]
[1739334725616,0.2106743,95410.0,95409.0,0.007]
[1739334731619,0.5714743,95410.0,95409.0,0.007]
[1739334731809,0.5704743,95410.0,95409.0,0.001]
[1739334732014,0.5704743,95410.0,95409.0,0.004]
[1739334732218,0.5704743,95410.0,95409.0,0.003]
[1739334732820,0.5704743,95410.0,95409.0,0.002]
[1739334733421,0.00015718,95419.0,95409.0,0.2116765]
[1739334733422,0.2096675,95414.0,95409.0,0.2116765]
[1739334733825,0.2096704,95412.0,95409.0,0.2116765]
[1739334734323,0.2096704,95412.0,95403.0,0.2096879]
[1739334734524,0.2096704,95412.0,95409.0,0.004]
[1739334735118,0.2096704,95412.0,95405.0,0.2096843]
[1739334735318,0.2106704,95412.0,95409.0,0.007]
[1739334735914,0.2096704,95412.0,95405.0,0.2096843]
[1739334736113,0.2106704,95412.0,95409.0,0.007]
[1739334736925,0.001,95412.0,95409.0,0.007]
[1739334737519,0.001,95412.0,95405.0,0.012]
[1739334737821,0.001,95412.0,95409.0,0.001]
[1739334738317,0.001,95412.0,95409.0,0.007]
[1739334738726,0.2106713,95412.0,95409.0,0.007]